fUST/lending_fUST_20250208
["ID","MTS","AMOUNT","RATE_DAILY","PERIOD"]
[352191873,1738986651141,-1177.77,0.00011232,2]
[352191874,1738986651150,-10693.74,0.00011232,2]
[352191875,1738986651159,-500.0,0.00011232,2]
[352191876,1738986651169,-424.72585932,0.00011232,2]
[352191877,1738986651178,-500.0,0.00011232,2]
[352191878,1738986651186,-502.19880338,0.00011232,2]
[352191879,1738986651195,-500.0,0.00011232,2]
[352191880,1738986651204,-500.0,0.00011232,2]
[352191881,1738986651213,-500.0,0.00011232,2]
[352191882,1738986651222,-501.01365762,0.00011232,2]
[352191883,1738986651231,-1162.81,0.00011232,2]
[352191884,1738986651241,-500.0,0.00011232,2]
[352191885,1738986651250,-500.0,0.00011232,2]
[352191886,1738986651260,-500.0,0.00011232,2]
[352191887,1738986651269,-500.0,0.00011232,2]
[352191888,1738986651279,-503.84211896,0.00011232,2]
[352191889,1738986651289,-500.0,0.00011232,2]
[352191890,1738986651299,-500.0,0.00011232,2]
[352191891,1738986651308,-500.0,0.00011232,2]
[352191892,1738986651317,-500.0,0.00011232,2]
[352191893,1738986651327,-1855.5,0.00011232,2]
[352191894,1738986651340,-500.0,0.00011232,2]
[352191895,1738986651350,-503.56031213,0.00011232,2]
[352191896,1738986651360,-641.76692231,0.00011232,2]
[352191897,1738986651369,-500.0,0.00011232,2]
[352191898,1738986651380,-500.0,0.00011232,2]
[352191899,1738986651391,-500.0,0.00011232,2]
[352191900,1738986651399,-505.59108164,0.00011232,2]
[352191901,1738986651411,-500.0,0.00011232,2]
[352191902,1738986651421,-501.40233573,0.00011232,2]
[352191903,1738986651430,-500.0,0.00011232,2]
[352191904,1738986651440,-500.0,0.00011232,2]
[352191905,1738986651449,-2654.64,0.00011232,2]
[352191906,1738986651458,-500.0,0.00011232,2]
[352191907,1738986651467,-500.0,0.00011232,2]
[352191908,1738986651476,-170.20082998,0.00011232,2]
[352191909,1738986651485,-633.5,0.00011232,2]
[352191910,1738986651495,-500.0,0.00011232,2]
[352191911,1738986651504,-2284.39,0.00011232,2]
[352191912,1738986651513,-574.58,0.00011232,2]
[352191913,1738986651640,-500.0,0.00011232,2]
[352191914,1738986651650,-1477.23,0.00011232,2]
[352191915,1738986651659,-2768.12,0.00011232,2]
[352191916,1738986651669,-500.0,0.00011232,2]
[352191917,1738986651678,-4667.86,0.00011232,2]
[352191918,1738986651686,-500.0,0.00011232,2]
[352191919,1738986651695,-511.59786453,0.00011232,2]
[352191920,1738986651704,-500.0,0.00011232,2]
[352191921,1738986651713,-646.34,0.00011232,2]
[352191922,1738986651722,-880.47,0.00011232,2]
[352191923,1738986651731,-500.0,0.00011232,2]
[352191924,1738986651740,-596.69,0.00011232,2]
[352191925,1738986651749,-501.36482393,0.00011232,2]
[352191926,1738986651758,-500.0,0.00011232,2]
[352191927,1738986651766,-1084.97,0.00011232,2]
[352191928,1738986651775,-1008.78,0.00011232,2]
[352191929,1738986651784,-500.0,0.00011232,2]
[352191930,1738986651793,-500.0,0.00011232,2]
[352191931,1738986651802,-500.0,0.00011232,2]
[352191932,1738986651811,-214.51251466,0.00011232,2]
[352191933,1738986651820,-602.02,0.00011232,2]
[352191934,1738986651829,-500.0,0.00011232,2]
[352191935,1738986651839,-500.0,0.00011232,2]
[352191936,1738986651848,-500.0,0.00011232,2]
[352191937,1738986651857,-500.0,0.00011232,2]
[352191938,1738986651866,-500.0,0.00011232,2]
[352191939,1738986651875,-500.0,0.00011232,2]
[352191940,1738986651884,-500.0,0.00011232,2]
[352191941,1738986651893,-3730.92,0.00011232,2]
[352191942,1738986651902,-500.0,0.00011232,2]
[352191943,1738986651912,-669.85,0.00011232,2]
[352191944,1738986651921,-500.0,0.00011232,2]
[352191945,1738986651930,-500.0,0.00011232,2]
[352191946,1738986651942,-500.0,0.00011232,2]
[352191947,1738986651951,-500.0,0.00011232,2]
[352191948,1738986651962,-2965.28,0.00011232,2]
[352191949,1738986651972,-500.0,0.00011232,2]
[352191950,1738986651982,-500.0,0.00011232,2]
[352191951,1738986651991,-500.0,0.00011232,2]
[352191952,1738986652000,-500.0,0.00011232,2]
[352191953,1738986652009,-405.98396804,0.00011232,2]
[352191954,1738986652018,-500.0,0.00011232,2]
[352191955,1738986652027,-500.0,0.00011232,2]
[352191956,1738986652036,-1257.34,0.00011232,2]
[352191957,1738986652045,-500.0,0.00011232,2]
[352191958,1738986652054,-500.0,0.00011232,2]
[352191959,1738986652063,-500.0,0.00011232,2]
[352191960,1738986652072,-500.0,0.00011232,2]
[352191961,1738986652081,-3003.49,0.00011232,2]
[352191962,1738986652091,-2955.85111631,0.00011269,2]
[352191963,1738986652101,-500.0,0.00011286,2]
[352191964,1738986652110,-500.80939417,0.00011286,2]
[352191965,1738986652119,-500.0,0.00011369,2]
[352191966,1738986652128,-177.57,0.00011369,2]
[352191967,1738986652137,-500.0,0.00011369,2]
[352191968,1738986652147,-500.0,0.00011369,2]
[352191969,1738986652155,-502.69411031,0.00011369,2]
[352191970,1738986652165,-500.0,0.00011369,2]
[352191971,1738986652175,-544.49,0.00011369,2]
[352191972,1738986652184,-239.09,0.00011369,2]
[352191973,1738986652194,-500.0,0.00011369,2]
[352191974,1738986652203,-572.08710205,0.00011369,2]
[352191975,1738986652214,-500.0,0.00011369,2]
[352191976,1738986652224,-500.0,0.00011369,2]
[352191977,1738986652234,-500.0,0.00011369,2]
[352191978,1738986652243,-500.0,0.00011369,2]
[352191979,1738986652252,-500.0,0.00011369,2]
[352191980,1738986652262,-311.46966345,0.00011369,2]
[352191981,1738986652273,-500.0,0.00011369,2]
[352191982,1738986652282,-500.0,0.00011369,2]
[352191983,1738986652291,-500.0,0.00011369,2]
[352191984,1738986652301,-579.44,0.00011369,2]
[352191985,1738986652311,-500.0,0.00011369,2]
[352191986,1738986652320,-500.0,0.00011369,2]
[352191987,1738986652331,-500.0,0.00011369,2]
[352191988,1738986652346,-500.0,0.00011369,2]
[352191989,1738986652355,-500.0,0.00011369,2]
[352191990,1738986652365,-500.0,0.00011369,2]
[352191991,1738986652375,-757.88,0.00011369,2]
[352191992,1738986652385,-500.0,0.00011369,2]
[352191993,1738986652394,-500.0,0.00011369,2]
[352191994,1738986652404,-500.0,0.00011369,2]
[352191995,1738986652416,-500.0,0.00011369,2]
[352191996,1738986652426,-989.22,0.00011369,2]
[352191997,1738986652435,-500.0,0.00011369,2]
[352191998,1738986652445,-500.0,0.00011369,2]
[352191999,1738986652454,-502.57529349,0.00011369,2]
[352192000,1738986652464,-500.0,0.00011369,2]
[352192001,1738986652473,-500.0,0.00011369,2]
[352192002,1738986652482,-206.93847644,0.00011369,2]
[352192003,1738986652493,-527.71,0.00011369,2]
[352192004,1738986652503,-739.68,0.00011369,2]
[352192005,1738986652512,-500.0,0.00011369,2]
[352192006,1738986652522,-500.0,0.00011369,2]
[352192007,1738986652531,-546.46343074,0.00011369,2]
[352192008,1738986652540,-500.0,0.00011369,2]
[352192009,1738986652550,-500.0,0.00011369,2]
[352192010,1738986652559,-500.0,0.00011369,2]
[352192011,1738986652569,-506.09931562,0.00011369,2]
[352192012,1738986652578,-500.0,0.00011369,2]
[352192013,1738986652587,-500.0,0.00011369,2]
[352192014,1738986652596,-500.0,0.00011369,2]
[352192015,1738986652606,-888.92,0.00011369,2]
[352192016,1738986652615,-500.0,0.00011369,2]
[352192017,1738986652625,-1180.78,0.00011369,2]
[352192018,1738986652634,-500.0,0.00011369,2]
[352192019,1738986652643,-503.4108298,0.00011369,2]
[352192020,1738986652652,-500.0,0.00011369,2]
[352192021,1738986652661,-1211.24,0.00011369,2]
[352192022,1738986652670,-500.0,0.00011369,2]
[352192023,1738986652680,-503.252898,0.00011369,2]
[352192024,1738986652690,-500.0,0.00011369,2]
[352192025,1738986652700,-500.0,0.00011369,2]
[352192026,1738986652709,-500.0,0.00011369,2]
[352192027,1738986652719,-587.76,0.00011369,2]
[352192028,1738986652728,-589.7269336,0.00011369,2]
[352192029,1738986652738,-416.45504213,0.00011369,2]
[352192030,1738986652748,-502.96487902,0.00011369,2]
[352192031,1738986652757,-500.0,0.00011369,2]
[352192032,1738986652767,-500.0,0.00011369,2]
[352192033,1738986652776,-500.0,0.00011369,2]
[352192034,1738986652787,-500.0,0.00011369,2]
[352192035,1738986652796,-500.0,0.00011369,2]
[352192036,1738986652806,-1187.64,0.00011369,2]
[352192037,1738986652815,-500.0,0.00011369,2]
[352192038,1738986652825,-168.77445877,0.00011369,2]
[352192039,1738986652835,-500.0,0.00011369,2]
[352192040,1738986652844,-844.74,0.00011369,2]
[352192041,1738986652854,-504.40682222,0.00011369,2]
[352192042,1738986652863,-500.0,0.00011369,2]
[352192043,1738986652872,-503.1723947,0.00011369,2]
[352192044,1738986652882,-500.0,0.00011369,2]
[352192045,1738986652891,-500.0,0.00011369,2]
[352192046,1738986652901,-500.0,0.00011369,2]
[352192047,1738986652910,-500.0,0.00011369,2]
[352192048,1738986652920,-500.0,0.00011369,2]
[352192049,1738986652929,-643.98,0.00011369,2]
[352192050,1738986652939,-500.0,0.00011369,2]
[352192051,1738986652948,-500.0,0.00011369,2]
[352192052,1738986652958,-500.0,0.00011369,2]
[352192053,1738986652968,-500.0,0.00011369,2]
[352192054,1738986652977,-509.49316727,0.00011369,2]
[352192055,1738986652986,-500.0,0.00011369,2]
[352192056,1738986652996,-500.0,0.00011369,2]
[352192057,1738986653006,-503.1296416,0.00011369,2]
[352192058,1738986653015,-1161.94,0.00011369,2]
[352192059,1738986653025,-11896.36,0.00011369,2]
[352192060,1738986653034,-500.0,0.00011369,2]
[352192061,1738986653044,-2490.74,0.00011369,2]
[352192062,1738986653054,-500.0,0.00011369,2]
[352192063,1738986653063,-1808.35,0.00011369,2]
[352192064,1738986653073,-504.4176464,0.00011369,2]
[352192065,1738986653082,-503.49520543,0.00011369,2]
[352192066,1738986653091,-500.0,0.00011369,2]
[352192067,1738986653101,-505.14423821,0.00011369,2]
[352192068,1738986653110,-411.74466079,0.00011369,2]
[352192069,1738986653119,-500.0,0.00011369,2]
[352192070,1738986653129,-866.24,0.00011369,2]
[352192071,1738986653140,-500.0,0.00011369,2]
[352192072,1738986653150,-500.0,0.00011369,2]
[352192073,1738986653161,-1107.31,0.00011369,2]
[352192074,1738986653170,-500.0,0.00011369,2]
[352192075,1738986653180,-500.0,0.00011369,2]
[352192076,1738986653189,-500.0,0.00011369,2]
[352192077,1738986653198,-500.0,0.00011369,2]
[352192078,1738986653208,-500.0,0.00011369,2]
[352192079,1738986653217,-500.0,0.00011369,2]
[352192080,1738986653227,-500.0,0.00011369,2]
[352192081,1738986653236,-530.54,0.00011369,2]
[352192082,1738986653246,-3349.65,0.00011369,2]
[352192083,1738986653255,-500.0,0.00011369,2]
[352192084,1738986653264,-1343.7,0.00011369,2]
[352192085,1738986653273,-500.0,0.00011369,2]
[352192086,1738986653283,-500.0,0.00011369,2]
[352192087,1738986653292,-500.0,0.00011369,2]
[352192088,1738986653302,-500.0,0.00011369,2]
[352192089,1738986653312,-500.0,0.00011369,2]
[352192090,1738986653321,-930.56,0.00011369,2]
[352192091,1738986653332,-2379.24,0.00011369,2]
[352192092,1738986653344,-500.0,0.00011369,2]
[352192093,1738986653354,-500.0,0.00011369,2]
[352192094,1738986653363,-500.0,0.00011369,2]
[352192095,1738986653373,-500.0,0.00011369,2]
[352192096,1738986653383,-1198.12,0.00011369,2]
[352192097,1738986653392,-500.0,0.00011369,2]
[352192098,1738986653402,-500.0,0.00011369,2]
[352192099,1738986653412,-500.0,0.00011369,2]
[352192100,1738986653421,-504.41216816,0.00011369,2]
[352192101,1738986653432,-500.0,0.00011369,2]
[352192102,1738986653442,-500.0,0.00011369,2]
[352192103,1738986653451,-37253.15,0.00011369,2]
[352192104,1738986653460,-500.0,0.00011369,2]
[352192105,1738986653469,-1173.62,0.00011369,2]
[352192106,1738986653478,-574.44242799,0.00011369,2]
[352192107,1738986653488,-500.0,0.00011369,2]
[352192108,1738986653497,-500.0,0.00011369,2]
[352192109,1738986653507,-1514.0,0.00011369,2]
[352192110,1738986653517,-500.0,0.00011369,2]
[352192111,1738986653526,-750.14,0.00011369,2]
[352192112,1738986653536,-502.10651484,0.00011369,2]
[352192113,1738986653545,-500.0,0.00011369,2]
[352192114,1738986653555,-1419.55,0.00011369,2]
[352192115,1738986653565,-423.42867661,0.00011369,2]
[352192116,1738986653574,-500.0,0.00011369,2]
[352192117,1738986653584,-500.0,0.00011369,2]
[352192118,1738986653593,-500.0,0.00011369,2]
[352192119,1738986653603,-500.0,0.00011369,2]
[352192120,1738986653612,-852.4,0.00011369,2]
[352192121,1738986653621,-500.0,0.00011369,2]
[352192122,1738986653631,-500.0,0.00011369,2]
[352192123,1738986653641,-752.14,0.00011369,2]
[352192124,1738986653650,-1177.77,0.00011369,2]
[352192125,1738986653659,-10693.74,0.00011369,2]
[352192126,1738986653669,-500.0,0.00011369,2]
[352192127,1738986653678,-500.0,0.00011369,2]
[352192128,1738986653688,-500.0,0.00011369,2]
[352192129,1738986653697,-500.0,0.00011369,2]
[352192130,1738986653706,-500.0,0.00011369,2]
[352192131,1738986653715,-1162.81,0.00011369,2]
[352192132,1738986653724,-503.42606639,0.00011369,2]
[352192133,1738986653733,-500.0,0.00011369,2]
[352192134,1738986653742,-500.0,0.00011369,2]
[352192135,1738986653752,-589.6555947,0.00011369,2]
[352192136,1738986653763,-500.0,0.00011369,2]
[352192137,1738986653772,-500.0,0.00011369,2]
[352192138,1738986653781,-500.0,0.00011369,2]
[352192139,1738986653791,-240.92301829,0.00011369,2]
[352192140,1738986653801,-1855.5,0.00011369,2]
[352192141,1738986653810,-500.0,0.00011369,2]
[352192142,1738986653819,-500.0,0.00011369,2]
[352192143,1738986653828,-500.0,0.00011369,2]
[352192144,1738986653838,-500.0,0.00011369,2]
[352192145,1738986653847,-500.0,0.00011369,2]
[352192146,1738986653858,-503.48763036,0.00011369,2]
[352192147,1738986653867,-332.7219792,0.00011369,2]
[352192148,1738986653877,-2654.64,0.00011369,2]
[352192149,1738986653886,-500.0,0.00011369,2]
[352192150,1738986653897,-633.5,0.00011369,2]
[352192151,1738986653906,-500.0,0.00011369,2]
[352192152,1738986653916,-2284.39,0.00011369,2]
[352192153,1738986653927,-574.58,0.00011369,2]
[352192154,1738986653936,-500.0,0.00011369,2]
[352192155,1738986653946,-1477.23,0.00011369,2]
[352192156,1738986653956,-2768.12,0.00011369,2]
[352192157,1738986653965,-500.0,0.00011369,2]
[352192158,1738986653975,-4667.86,0.00011369,2]
[352192159,1738986653984,-500.0,0.00011369,2]
[352192160,1738986653993,-500.0,0.00011369,2]
[352192161,1738986654003,-646.34,0.00011369,2]
[352192162,1738986654013,-880.47,0.00011369,2]
[352192163,1738986654023,-500.0,0.00011369,2]
[352192164,1738986654032,-596.69,0.00011369,2]
[352192165,1738986654041,-500.0,0.00011369,2]
[352192166,1738986654051,-1084.97,0.00011369,2]
[352192167,1738986654060,-1008.78,0.00011369,2]
[352192168,1738986654069,-291.80128598,0.00011369,2]
[352192169,1738986654078,-541.47714576,0.00011369,2]
[352192170,1738986654087,-500.0,0.00011369,2]
[352192171,1738986654097,-602.02,0.00011369,2]
[352192172,1738986654106,-500.0,0.00011369,2]
[352192173,1738986654116,-500.0,0.00011369,2]
[352192174,1738986654125,-505.92371965,0.00011369,2]
[352192175,1738986654134,-500.0,0.00011369,2]
[352192176,1738986654143,-444.81188334,0.00011369,2]
[352192177,1738986654153,-500.0,0.00011369,2]
[352192178,1738986654281,-500.0,0.00011369,2]
[352192179,1738986654291,-3730.92,0.00011369,2]
[352192180,1738986654300,-500.0,0.00011369,2]
[352192181,1738986654309,-669.85,0.00011369,2]
[352192182,1738986654319,-500.0,0.00011369,2]
[352192183,1738986654328,-500.0,0.00011369,2]
[352192184,1738986654342,-331.13522163,0.00011369,2]
[352192185,1738986654352,-2965.28,0.00011369,2]
[352192186,1738986654361,-503.86530471,0.00011369,2]
[352192187,1738986654370,-500.0,0.00011369,2]
[352192188,1738986654381,-385.29,0.00011369,2]
[352192189,1738986654390,-500.0,0.00011369,2]
[352192190,1738986654398,-500.0,0.00011369,2]
[352192191,1738986654408,-1257.34,0.00011369,2]
[352192192,1738986654419,-500.0,0.00011369,2]
[352192193,1738986654429,-500.0,0.00011369,2]
[352192194,1738986654438,-500.0,0.00011369,2]
[352192195,1738986654447,-549.94390632,0.00011369,2]
[352192196,1738986654457,-248.56598574,0.00011407,2]
[352192197,1738986654466,-13265.39216455,0.00011477,2]
[352192198,1738986654475,-151.0,0.000115,2]
[352192199,1738986654484,-500.0,0.00011506,2]
[352192200,1738986654494,-500.0,0.00011506,2]
[352192201,1738986654503,-500.0,0.00011506,2]
[352192202,1738986654512,-206.0,0.00011506,2]
[352192203,1738986654521,-544.49,0.00011506,2]
[352192204,1738986654531,-175.04,0.00011506,2]
[352192205,1738986654540,-165.11413359,0.00011506,2]
[352192206,1738986654551,-500.0,0.00011506,2]
[352192207,1738986654560,-500.0,0.00011506,2]
[352192208,1738986654570,-579.44,0.00011506,2]
[352192209,1738986654580,-500.0,0.00011506,2]
[352192210,1738986654589,-500.0,0.00011506,2]
[352192211,1738986654599,-500.0,0.00011506,2]
[352192212,1738986654609,-500.0,0.00011506,2]
[352192213,1738986654619,-500.0,0.00011506,2]
[352192214,1738986654629,-757.88,0.00011506,2]
[352192215,1738986654639,-500.0,0.00011506,2]
[352192216,1738986654648,-342.64521233,0.00011506,2]
[352192217,1738986654887,-161.82735539,0.00011506,2]
[352192218,1738986654897,-500.0,0.00011506,2]
[352192219,1738986654906,-139.06183856,0.00011506,2]
[352192220,1738986654917,-850.15816144,0.00011506,2]
[352192221,1738986654926,-500.0,0.00011506,2]
[352192222,1738986654936,-500.0,0.00011506,2]
[352192223,1738986654945,-500.0,0.00011506,2]
[352192224,1738986654954,-500.0,0.00011506,2]
[352192225,1738986654964,-527.71,0.00011506,2]
[352192226,1738986654973,-739.68,0.00011506,2]
[352192227,1738986654982,-500.0,0.00011506,2]
[352192228,1738986654992,-500.0,0.00011506,2]
[352192229,1738986655001,-500.0,0.00011506,2]
[352192230,1738986655010,-500.0,0.00011506,2]
[352192231,1738986655020,-500.0,0.00011506,2]
[352192232,1738986655029,-500.0,0.00011506,2]
[352192233,1738986655038,-500.0,0.00011506,2]
[352192234,1738986655047,-500.0,0.00011506,2]
[352192235,1738986655058,-888.92,0.00011506,2]
[352192236,1738986655067,-239.21151646,0.00011506,2]
[352192237,1738986655076,-1180.78,0.00011506,2]
[352192238,1738986655086,-500.0,0.00011506,2]
[352192239,1738986655095,-500.0,0.00011506,2]
[352192240,1738986655104,-1211.24,0.00011506,2]
[352192241,1738986655114,-500.0,0.00011506,2]
[352192242,1738986655123,-500.0,0.00011506,2]
[352192243,1738986655133,-500.0,0.00011506,2]
[352192244,1738986655142,-500.0,0.00011506,2]
[352192245,1738986655152,-587.76,0.00011506,2]
[352192246,1738986655162,-500.0,0.00011506,2]
[352192247,1738986655171,-502.9511576,0.00011506,2]
[352192248,1738986655181,-502.78085355,0.00011506,2]
[352192249,1738986655191,-500.0,0.00011506,2]
[352192250,1738986655200,-581.49025921,0.00011506,2]
[352192251,1738986655209,-1187.64,0.00011506,2]
[352192252,1738986655219,-500.0,0.00011506,2]
[352192253,1738986655228,-844.74,0.00011506,2]
[352192254,1738986655238,-588.98597003,0.00011506,2]
[352192255,1738986655248,-500.0,0.00011506,2]
[352192256,1738986655257,-500.0,0.00011506,2]
[352192257,1738986655267,-500.0,0.00011506,2]
[352192258,1738986655276,-500.0,0.00011506,2]
[352192259,1738986655285,-500.0,0.00011506,2]
[352192260,1738986655295,-643.98,0.00011506,2]
[352192261,1738986655306,-500.0,0.00011506,2]
[352192262,1738986655315,-500.0,0.00011506,2]
[352192263,1738986655325,-511.95118097,0.00011506,2]
[352192264,1738986655338,-500.0,0.00011506,2]
[352192265,1738986655348,-500.0,0.00011506,2]
[352192266,1738986655357,-1161.94,0.00011506,2]
[352192267,1738986655366,-11896.36,0.00011506,2]
[352192268,1738986655376,-502.43963314,0.00011506,2]
[352192269,1738986655386,-2490.74,0.00011506,2]
[352192270,1738986655395,-500.0,0.00011506,2]
[352192271,1738986655405,-1808.35,0.00011506,2]
[352192272,1738986655415,-500.0,0.00011506,2]
[352192273,1738986655425,-547.7,0.00011506,2]
[352192274,1738986655434,-866.24,0.00011506,2]
[352192275,1738986655443,-291.69960505,0.00011506,2]
[352192276,1738986655453,-500.0,0.00011506,2]
[352192277,1738986655462,-1107.31,0.00011506,2]
[352192278,1738986655472,-500.0,0.00011506,2]
[352192279,1738986655481,-500.0,0.00011506,2]
[352192280,1738986655490,-500.0,0.00011506,2]
[352192281,1738986655499,-500.0,0.00011506,2]
[352192282,1738986655509,-595.85,0.00011506,2]
[352192283,1738986655518,-500.0,0.00011506,2]
[352192284,1738986655527,-500.0,0.00011506,2]
[352192285,1738986655536,-530.54,0.00011506,2]
[352192286,1738986655546,-3349.65,0.00011506,2]
[352192287,1738986655556,-500.0,0.00011506,2]
[352192288,1738986655566,-1343.7,0.00011506,2]
[352192289,1738986655575,-501.87996717,0.00011506,2]
[352192290,1738986655584,-596.13797037,0.00011506,2]
[352192291,1738986655593,-500.0,0.00011506,2]
[352192292,1738986655602,-930.56,0.00011506,2]
[352192293,1738986655611,-2379.24,0.00011506,2]
[352192294,1738986655621,-500.0,0.00011506,2]
[352192295,1738986655630,-503.4192844,0.00011506,2]
[352192296,1738986655639,-500.0,0.00011506,2]
[352192297,1738986655649,-1198.12,0.00011506,2]
[352192298,1738986655658,-500.0,0.00011506,2]
[352192299,1738986655667,-500.0,0.00011506,2]
[352192300,1738986655677,-500.0,0.00011506,2]
[352192301,1738986655686,-500.0,0.00011506,2]
[352192302,1738986655696,-500.0,0.00011506,2]
[352192303,1738986655705,-36562.11020086,0.00011506,2]
[352192304,1738986655718,-691.03979914,0.00011506,2]
[352192305,1738986655727,-629.53,0.00011506,2]
[352192306,1738986655736,-1173.62,0.00011506,2]
[352192307,1738986655745,-201.5,0.00011506,2]
[352192308,1738986655755,-500.0,0.00011506,2]
[352192309,1738986655765,-1514.0,0.00011506,2]
[352192310,1738986655775,-500.0,0.00011506,2]
[352192311,1738986655784,-750.14,0.00011506,2]
[352192312,1738986655794,-500.0,0.00011506,2]
[352192313,1738986655804,-1419.55,0.00011506,2]
[352192314,1738986655813,-500.0,0.00011506,2]
[352192315,1738986655823,-504.78991314,0.00011506,2]
[352192316,1738986655833,-500.0,0.00011506,2]
[352192317,1738986655843,-500.0,0.00011506,2]
[352192318,1738986655852,-852.4,0.00011506,2]
[352192319,1738986655861,-504.76946047,0.00011506,2]
[352192320,1738986655871,-503.79633868,0.00011506,2]
[352192321,1738986655880,-752.14,0.00011506,2]
[352192322,1738986655889,-1177.77,0.00011506,2]
[352192323,1738986655898,-10693.74,0.00011506,2]
[352192324,1738986655908,-500.0,0.00011506,2]
[352192325,1738986655917,-504.48590522,0.00011506,2]
[352192326,1738986655926,-500.0,0.00011506,2]
[352192327,1738986655935,-49.0696791,0.00011506,2]
[352192328,1738986655947,-450.9303209,0.00011506,2]
[352192329,1738986655957,-1162.81,0.00011506,2]
[352192330,1738986655966,-444.18404461,0.00011506,2]
[352192331,1738986655975,-500.0,0.00011506,2]
[352192332,1738986655984,-299.66598024,0.00011506,2]
[352192333,1738986656281,-471.03760589,0.00010958,2]
[352192334,1738986656292,-30.46740525,0.00010958,2]
[352192335,1738986656301,-502.49340466,0.00010958,2]
[352192336,1738986656310,-408.16599799,0.00010958,2]
[352192337,1738986656321,-91.83400201,0.00010958,2]
[352192338,1738986656331,-500.0,0.00010958,2]
[352192339,1738986656344,-157.75107128,0.00010958,2]
[352192340,1738986656476,-345.11082077,0.00010958,2]
[352192341,1738986656485,-622.75,0.00011095,2]
[352192342,1738986656494,-3003.49,0.00011369,2]
[352192343,1738986656503,-200.33401976,0.00011506,2]
[352192344,1738986656513,-503.1037348,0.00011506,2]
[352192345,1738986656522,-503.62015603,0.00011506,2]
[352192346,1738986656531,-1855.5,0.00011506,2]
[352192347,1738986656540,-129.80951991,0.00011506,2]
[352192348,1738986656792,-501.78305992,0.00010958,2]
[352192349,1738986656804,-500.0,0.00010958,2]
[352192350,1738986656813,-1170.02,0.00010959,2]
[352192351,1738986656822,-370.19048009,0.00011506,2]
[352192352,1738986656832,-503.81779582,0.00011506,2]
[352192353,1738986656841,-500.0,0.00011506,2]
[352192354,1738986656851,-291.07727519,0.00011506,2]
[352192355,1738986656861,-405.83975725,0.00011506,2]
[352192356,1738986656872,-2654.64,0.00011506,2]
[352192357,1738986656882,-500.0,0.00011506,2]
[352192358,1738986656891,-633.5,0.00011506,2]
[352192359,1738986656900,-2284.39,0.00011506,2]
[352192360,1738986656910,-574.58,0.00011506,2]
[352192361,1738986656919,-1477.23,0.00011506,2]
[352192362,1738986656928,-2768.12,0.00011506,2]
[352192363,1738986656938,-500.0,0.00011506,2]
[352192364,1738986656947,-4667.86,0.00011506,2]
[352192365,1738986656958,-500.76,0.00011506,2]
[352192366,1738986656967,-500.0,0.00011506,2]
[352192367,1738986656976,-646.34,0.00011506,2]
[352192368,1738986656986,-880.47,0.00011506,2]
[352192369,1738986656995,-500.0,0.00011506,2]
[352192370,1738986657005,-596.69,0.00011506,2]
[352192371,1738986657014,-613.44,0.00011506,2]
[352192372,1738986657023,-1084.97,0.00011506,2]